Cogmind - Beta 16 @@@ ROGUE MODE // 2026.01.24 @ 23:41:16 Player: vorsii Result: Destroyed by P-60 Hacker with Shock Rifle Performance ------------- Evolutions (0) 0 Regions Visited (3) 600 Robots Destroyed (32) 160 Value Destroyed (575) 575 Prototype IDs (25) 500 Alien Tech Used (0) 0 Bonus (300) 300 TOTAL SCORE: 2135 Bonus ------- Aligned with FarCom 300 Cogmind --------- Core Integrity 0/250 Matter 222/300 Energy 100/100 System Corruption 6% Temperature Cool (0) Movement Treading (480) Ox4 Location -10/Exiles Parts ------- > --- POWER (1) -------- (None) > --- PROPULSION (2) --- Light Treads > --- UTILITY (2) ------ Huge Storage Unit Signal Interpreter > --- WEAPON (2) ------- Assault Rifle Assault Rifle > --- INVENTORY (25) --- Light Treads Light Treads Light Treads Light Treads Light Treads Lightpack 2.0 Structural Scanner Sensor Array Signal Interpreter Transport Network Coupler Propulsion Shielding Light Armor Plating Trap Reconfigurator Assault Rifle AWS/Autocannon Mining Laser Peak State ------------ > --- POWER ------------ Ion Engine > --- PROPULSION ------- Light Treads Light Treads > --- UTILITY ---------- Huge Storage Unit Signal Interpreter > --- WEAPON ----------- Assault Rifle Grenade Launcher > --- INVENTORY -------- Light Treads Light Treads Light Treads Light Treads Light Treads Lightpack 2.0 Structural Scanner Sensor Array Signal Interpreter Transport Network Coupler Propulsion Shielding Light Armor Plating Trap Reconfigurator Assault Rifle Assault Rifle Assault Rifle AWS/Autocannon Grenade Launcher Mining Laser [Rating: 15] Favorites ----------- Power Ion Engine Engine Ion Engine Propulsion Light Treads Treads Light Treads Utility Huge Storage Unit Storage Huge Storage Unit Processor Visual Processing Unit Protection Propulsion Shielding Weapon Assault Rifle Ballistic Gun Assault Rifle Launcher Grenade Launcher Build | -11 -10 -10 -10 ------- Run | Yrd Mat Min Exi Slots Evolved . | . . . . Power . | . . . . Propulsion . | . . . . Utility . | . . . . Weapon . | . . . . Parts Attached 28 | 7 18 . 3 Power 4 | 2 2 . . Engine 4 | 2 2 . . Core . | . . . . Reactor . | . . . . Propulsion 7 | 2 4 . 1 Treads 7 | 2 4 . 1 Leg . | . . . . Wheel . | . . . . Hover . | . . . . Flight . | . . . . Utility 7 | 1 6 . . Device . | . . . . Storage 3 | 1 2 . . Processor 3 | . 3 . . Hackware . | . . . . Protection 1 | . 1 . . Artifact . | . . . . Weapon 10 | 2 6 . 2 Energy Gun . | . . . . Energy Cannon . | . . . . Ballistic Gun 7 | 2 4 . 1 Ballistic Cannon . | . . . . Launcher 3 | . 2 . 1 Special Weapon . | . . . . Impact Weapon . | . . . . Slashing Weapon . | . . . . Piercing Weapon . | . . . . Special Melee Weapon . | . . . . Unidentified Prototypes . | . . . . Parts Lost 5 | . . . 5 Power 1 | . . . 1 Propulsion 1 | . . . 1 Utility . | . . . . Weapon 3 | . . . 3 Highest Loss Streak 5 | . . . 5 To Critical Strikes . | . . . . Average Backups 14 | 4 13 16 16 Power . | . . . . Propulsion 4 | . 4 5 5 Utility 5 | . 5 6 6 Weapon 4 | 1 3 5 5 Tool/Special . | . . . . Unused Backups 16 | . 2 . 14 Power . | . . . . Propulsion 4 | . . . 4 Utility 7 | . . . 7 Weapon 5 | . 2 . 3 Tool/Special . | . . . . Average Slot Usage (%) 98 | . 98 100 99 Engine 13 | . 13 14 13 Treads 27 | . 27 28 27 Storage 14 | . 14 14 14 Processor 13 | . 12 14 14 Ballistic Gun 15 | . 16 14 14 Launcher 12 | . 11 14 13 Peak Build Rating 15 | 6 9 8 15 Average Rating 8 | 1 8 8 10 On Entrance 5 | . 6 8 8 Avg Prop Armor Cover (%) . | . . . . Naked Turns . | . . . . Heaviest Build 90 | 13 90 90 90 Greatest Support 40 | 40 40 40 40 Greatest Overweight (x) 3 | . 3 2 2 Average Overweight (x) 1 | . 1 2 2 Largest Inventory Capacity 25 | 8 25 25 25 Average Capacity 22 | 5 21 25 25 Most Carried 23 | 5 18 16 23 Average Carried 14 | 4 13 16 18 Final Capacity 25 | 8 25 25 25 Final Carried 20 | 1 16 16 20 Class Distribution -------------------- 100% | Mutant Dominant Class ---------------- Mutant | -10/Materials Mutant | -10/Mines Mutant | -10/Exiles Resources | -11 -10 -10 -10 ----------- Run | Yrd Mat Min Exi Matter Collected 881 | 220 661 . . Remotely . | . . . . Salvage Created 890 | . 858 . 32 Parts 54 | . 54 . . Haulers Intercepted 2 | . 2 . . Recyclers Shooed 1 | . 1 . . Parts Field Recycled . | . . . . Retrieved Matter . | . . . . Parts Self-Destructed . | . . . . Prevented . | . . . . Parts Restored . | . . . . Kills | -11 -10 -10 -10 ------- Run | Yrd Mat Min Exi Combat Hostiles Destroyed 14 | . 13 . 1 Guns 4 | . 3 . 1 AOE 10 | . 10 . . Classes Destroyed 9 | . 9 . . Worker 3 | . 3 . . Builder 4 | . 4 . . Tunneler 1 | . 1 . . Hauler 2 | . 2 . . Recycler 4 | . 4 . . Operator 1 | . 1 . . Watcher 3 | . 3 . . Swarmer 3 | . 3 . . Grunt 11 | . 10 . 1 Best Kill Streak 8 | . 8 . 1 Combat Bots Only 5 | . 5 . 1 Max Kills in Single Turn 3 | . 3 . 1 Gunslinging . | . . . . Exploded 2 | . 2 . . Melee . | . . . . Uniques/NPCs Destroyed . | . . . . Combat | -11 -10 -10 -10 -------- Run | Yrd Mat Min Exi Hostile Shots Fired 153 | . 61 . 92 Missed 54 | . 22 . 32 Hits 99 | . 39 . 60 Projectile 99 | . 39 . 60 Critical Strikes 2 | . . . 2 Damage Taken 1389 | . 541 . 848 Core 259 | . 86 . 173 Absorbed by Shields . | . . . . Core Remaining (%) 100 | 100 . . . Volleys Fired 67 | . 60 . 7 Largest 2 | . 2 . 2 Hottest 50 | . 50 . 50 Shots Fired 131 | . 118 . 13 Gun 95 | . 84 . 11 Cannon . | . . . . Launcher 36 | . 34 . 2 Special . | . . . . Kinetic 95 | . 84 . 11 Thermal . | . . . . Explosive 36 | . 34 . 2 Electromagnetic . | . . . . Robot Hit Streak 11 | . 11 . 6 Robot Miss Streak 4 | . 4 . 4 Penetration Max . | . . . . Secondary Targets . | . . . . Shots Hit Robots 61 | . 53 . 8 Core Hits 57 | . 53 . 4 Critical Kills . | . . . . Critical Parts Destroyed . | . . . . Critical Strikes . | . . . . Melee Attacks . | . . . . Impact . | . . . . Slashing . | . . . . Piercing . | . . . . Sneak Attacks . | . . . . Combat Hostiles . | . . . . Follow-up Attacks . | . . . . Damage Inflicted 1909 | . 1729 . 180 Guns 581 | . 447 . 134 Cannons . | . . . . Explosions 1328 | . 1282 . 46 Melee . | . . . . Ramming . | . . . . Kinetic 581 | . 447 . 134 Thermal . | . . . . Explosive 1328 | . 1282 . 46 Electromagnetic . | . . . . Impact . | . . . . Slashing . | . . . . Piercing . | . . . . Highest Corruption 6 | . . . 6 Average Corruption 3 | . . . 3 Corruption Purged . | . . . . Corruption Blocked . | . . . . Effects 1 | . . . 1 Message Errors 1 | . . . 1 Overload Shots . | . . . . Overflow Damage 36 | . 36 . . Projectiles . | . . . . Explosions 36 | . 36 . . Melee . | . . . . Knockbacks . | . . . . Impact . | . . . . Kinetic . | . . . . Secondary . | . . . . Self-Inflicted Damage 100 | . 100 . . Shots 6 | . 6 . . Rammed . | . . . . Targets Rammed . | . . . . Kicked . | . . . . Crushed . | . . . . Highest Temperature 6 | . 6 . . Average Temperature 2 | . 2 . . Received Heat Transfer 279 | . 207 . 72 Siege Activations . | . . . . Martial Activations . | . . . . Shielding Activations . | . . . . Robots Disrupted . | . . . . Combat Hostiles . | . . . . Robots Corrupted . | . . . . Combat Hostiles . | . . . . Parts Fried . | . . . . Impact Corruptions . | . . . . Robots Melted . | . . . . Combat Hostiles . | . . . . Parts Melted . | . . . . Heat Transferred . | . . . . Parts Sabotaged . | . . . . Parts Stolen . | . . . . Parts Stripped . | . . . . Power Chain Reactions . | . . . . Alert | -11 -10 -10 -10 ------- Run | Yrd Mat Min Exi Maximum Alert Level . | . . . . Low Security (%) 100 | 100 100 100 . Level 1 . | . . . . Level 2 . | . . . . Level 3 . | . . . . Level 4 . | . . . . Level 5 . | . . . . High Security . | . . . . Max Security . | . . . . Peak Influence 174 | . 174 21 . Initial 21 | . . 21 . Average 60 | . 72 1 . Influence Increases 655 | . 635 . 20 Destroy 0b10 Robot/C 280 | . 260 . 20 Destroy 0b10 Robot/NC 90 | . 90 . . Destroy Leader 60 | . 60 . . Successful Hack 27 | . 27 . . Disable Machine 15 | . 15 . . Destroy Structure 183 | . 183 . . Influence Decreases 651 | . 580 55 16 Entered New Map 34 | . . 34 . Time Decay 607 | . 580 21 6 Lost Part 10 | . . . 10 Squads Dispatched 1 | . 1 . . Investigation . | . . . . Extermination . | . . . . Reinforcement 1 | . 1 . . Assault . | . . . . Garrison . | . . . . Intercept . | . . . . Searches Triggered . | . . . . Construction Impeded . | . . . . Haulers Reinforced . | . . . . Active Scanning Responses . | . . . . Cargo Convoy Interrupts . | . . . . Stealth | -11 -10 -10 -10 --------- Run | Yrd Mat Min Exi Distress Signals . | . . . . Communications Jammed . | . . . . Distress Signals . | . . . . Times Spotted 29 | . 18 . 11 Peak Tracking Total 7 | . 3 . 7 Tactical Retreats . | . . . . Traps | -11 -10 -10 -10 ------- Run | Yrd Mat Min Exi Traps Triggered 4 | . 4 . . Indirectly . | . . . . Trap Hack Attempts . | . . . . Triggered . | . . . . Disarmed . | . . . . Reprogrammed . | . . . . Reused . | . . . . Traps Extracted . | . . . . Installed . | . . . . Triggered . | . . . . Machines | -11 -10 -10 -10 ---------- Run | Yrd Mat Min Exi Machines Disabled 2 | . 2 . . Max in Single Turn 1 | . 1 . . Machines Repaired . | . . . . Machines Dismantled . | . . . . Machines Sabotaged . | . . . . Overloaded Fab Kills . | . . . . Hacking | -11 -10 -10 -10 --------- Run | Yrd Mat Min Exi Machines Accessed 13 | . 8 . 5 Terminals 6 | . 6 . . Fabricators . | . . . . Repair Stations 1 | . 1 . . Recycling Units 1 | . 1 . . Scanalyzers . | . . . . Garrison Access . | . . . . Total Hacks 68 | . 18 . 50 Successful 63 | . 13 . 50 Failed 5 | . 5 . . Catastrophic 1 | . 1 . . Database Lockouts . | . . . . Manual 1 | . . . 1 Terminals 8 | . 8 . . Fabricators . | . . . . Repair Stations 2 | . 2 . . Recycling Units 8 | . 8 . . Scanalyzers . | . . . . Garrison Access . | . . . . Terminal Hacks 55 | . 5 . 50 Record 49 | . . . 49 Prototype ID Bank 1 | . 1 . . Locate Traps 2 | . 2 . . Zone Layout 2 | . 2 . . Proto ID Catalog 1 | . . . 1 Fabricator Hacks . | . . . . Repair Station Hacks 1 | . 1 . . Scan Component 1 | . 1 . . Recycling Unit Hacks 7 | . 7 . . Recycle Component 2 | . 2 . . Process 2 | . 2 . . Report Inventory 1 | . 1 . . Retrieve Matter 2 | . 2 . . Scanalyzer . | . . . . Garrison Access Hacks . | . . . . Unauthorized Hacks . | . . . . Terminals . | . . . . Fabricators . | . . . . Repair Stations . | . . . . Recycling Units . | . . . . Scanalyzers . | . . . . Garrison Access . | . . . . Data Cores Recovered . | . . . . Used . | . . . . Hacking Detections 3 | . 3 . . Full Trace Events . | . . . . Feedback Events . | . . . . Feedback Blocked . | . . . . Robot Schematics Acquired . | . . . . Robots Built . | . . . . Authchips . | . . . . Time . | . . . . Total Robot Build Rating . | . . . . Part Schematics Acquired . | . . . . Parts Built . | . . . . Authchips . | . . . . Time . | . . . . Total Part Build Rating . | . . . . Part Studies Acquired . | . . . . Parts Repaired . | . . . . Time . | . . . . Parts Recycled 2 | . 2 . . Recycled Matter 215 | . 215 . . Retrieved Matter 215 | . 215 . . Retrieved Components . | . . . . Parts Scanalyzed . | . . . . Part Schematics Acquired . | . . . . Parts Damaged . | . . . . Bothacking | -11 -10 -10 -10 ------------ Run | Yrd Mat Min Exi Used RIF Installer . | . . . . Robots Hacked . | . . . . Non-combat . | . . . . Combat . | . . . . Robot Hacks Applied . | . . . . Relay Couplers Released . | . . . . Fabnet Peak Effective % . | . . . . Robots Rewired . | . . . . Allies Hacked . | . . . . Hacks Repelled . | . . . . Allies | -11 -10 -10 -10 -------- Run | Yrd Mat Min Exi Total Allies . | . . . . Largest Group . | . . . . Highest-Rated Group . | . . . . Highest-Rated Ally . | . . . . Total Orders . | . . . . Ally Attacks . | . . . . Total Damage . | . . . . Kills . | . . . . Allies Corrupted . | . . . . Allies Melted . | . . . . Intel | -11 -10 -10 -10 ------- Run | Yrd Mat Min Exi Active Infowar (turns) 2567 | . 2567 . . Optics 2567 | . 2567 . . Robot Analysis Total . | . . . . Derelict Logs Recovered 2 | . . 2 . Drone Launches . | . . . . Drone Recoveries . | . . . . Exploration | -11 -10 -10 -10 ------------- Run | Yrd Mat Min Exi Turns Passed 5128 | 61 3397 629 1041 Spaces Moved 1715 | 42 1159 197 317 Core 35 | 17 18 . . Treads 1680 | 25 1141 197 317 Legs . | . . . . Wheels . | . . . . Hover . | . . . . Flight . | . . . . Fastest Speed 50 | 50 150 320 320 Average Speed 281 | 115 271 320 320 Slowest Speed 320 | 160 320 320 320 Overloaded Moves . | . . . . Propulsion Burnouts . | . . . . Robots Hopped . | . . . . Potential Cave-ins . | . . . . Cave-ins Triggered . | . . . . Exploration Rate (%) 52 | 3 100 47 58 Regions Visited 3 Branch Regions 2 Pre-discovered Areas 1 | . . . 1 Known Exits Taken 2 | . 1 1 . Unknown Exits Taken 1 | 1 . . . Scrap Searched 1 | . . 1 . Spaces Dug 6 | . 6 . . Terrain Destroyed 206 | . 201 . 5 Melee . | . . . . Projectile . | . . . . AOE 206 | . 201 . 5 Terrain Rammed . | . . . . Walls Destroyed . | . . . . Machines Disabled . | . . . . Actions | -11 -10 -10 -10 --------- Run | Yrd Mat Min Exi Total 1887 | 53 1306 197 331 Wait 20 | . 19 1 . Move 1712 | 41 1158 196 317 Hop . | . . . . Pick Up 40 | 5 32 . 3 Fast Attach 9 | 2 7 . . Attach 13 | 4 6 . 3 Detach . | . . . . Swap 13 | 1 11 . 1 Drop 13 | . 13 . . Fire 67 | . 60 . 7 Melee . | . . . . Ram . | . . . . Kick . | . . . . Crush . | . . . . Escape Stasis . | . . . . Rewire . | . . . . Trap . | . . . . Miscellaneous . | . . . . Route ------- -11/Scrapyard -10/Materials (discovered 6 exits: [*Mat x3] / *Min x2 / [*Sub]) -10/Mines -10/Exiles (discovered 2 exits: *Min x2) History --------- Turn | Location | Event 15 | -11/Scrapyard | Discovered new exit (range 14) 62 | -11/Scrapyard | Entered Materials 241 | -10/Materials | Discovered new exit (range 11) 244 | -10/Materials | Discovered new exit (range 16) 308 | -10/Materials | Build established: Mutant 327 | -10/Materials | Identified exit to Mines 341 | -10/Materials | Discovered new exit (range 15) 1476 | -10/Materials | Discovered new exit (range 18) 1986 | -10/Materials | Discovered new exit (range 18) 3036 | -10/Materials | Discovered new exit (range 10) 3459 | -10/Materials | Entered Mines 4049 | -10/Mines | Learned location of 1 exit from Materials 4065 | -10/Mines | Deemed a non-threat by the Exiles lab entrance 4068 | -10/Mines | Discovered new exit (range 5) 4081 | -10/Mines | Identified exit to Exiles 4088 | -10/Mines | Entered Exiles 4089 | -10/Exiles | Identified exit to Mines 4226 | -10/Exiles | Met 8R-AWN 4284 | -10/Exiles | Met EX-HEX 4405 | -10/Exiles | Met EX-BIN 4696 | -10/Exiles | Aligned with FarCom system 4700 | -10/Exiles | Given EX-Vault access code 4773 | -10/Exiles | Opened EX-Vault 4783 | -10/Exiles | Found Prototype Ballistic Cannon 4790 | -10/Exiles | Found Prototype Device 4807 | -10/Exiles | Found Prototype Storage 4818 | -10/Exiles | Identified Lightpack 2.0 4818 | -10/Exiles | Identified Trap Reconfigurator 4818 | -10/Exiles | Identified AWS/Autocannon 4885 | -10/Exiles | Warned to stay clear of 0b10 Research branches 4905 | -10/Exiles | Exiles lab attacked by MAIN.C 5032 | -10/Exiles | Learned location of Zion (-6) 5076 | -10/Exiles | Core integrity fell below 50% 5120 | -10/Exiles | Core integrity fell below 20% 5129 | -10/Exiles | Destroyed by P-60 Hacker with Shock Rifle Last Messages --------------- tampering with our system. --AM-PHS >>Record "MSG004964-01" Who left my Assembled plushie in the Analyzer again?! I'm not erasing this message until I get an answer. --BIN 05052_ Slug penetrates DAS Turret. 05058_ Machine disabled. 05062_ H-55 Commando knocked back. 05064_ Slug penetrates DAS Turret. 05065_ Machine disabled. 05082_ DAS Turret system terminally corrupted. 05086_ Ion Engine destroyed. 05086_ Grenade Launcher destroyed. 05098_ Machine disabled. 05100_ Assault Rifle destroyed. 05112_ Grenade Launcher destroyed. 05114_ 325Z Y#S<??????????????????????????????????????????#" | | ?????????????????????????????????????????????#"""" | | ?????????????????????????????????????????????##"## | | ????????????????????????????????????????????? "?? | | ????????????????????????????????????????????""" ?? | | ???????????????????????????????????????????#""" ?? | | ??????????????????????????????????????????????" ?? | | ??????????????????????????????????????????????##?? | | ?????????????????????????????????????????????????? | | ????????????????????#????????????????????????????? | | ????????????? ?????## ????????????????#######????? | | ???????????? ????#" ???????????????# """#????? | | ???????????? ?##" ??????????????#"" """#????? | | ???????????? #"" ??????????????#"" #????? | | ??????????? ?????????????#"" #????? | | ????????????# ?????????????#"" "#????? | | ?????????????## "????????????# ""#????? | | ?????????????#" ###?????????#"" ""#????? | | ?????????????"" @ ##????????### ###????? | | ???????????? "###" ######???### ###?#### | | ????????????????????##" p " "#####X #"###""" | | ?????????????????????#" p= """"" | | ?????????????????????#"# %g= g "" """ | | ?????????????????????#### * " | | ????????????????????????### g | | ??????????????????????????### g | | ????????????????????????????# g | | ?????????????????????????????# p | | ??????????????????????????????# " | | ???????????????????????????????#" | | ???????????????????????????????#" | | ???????????????????????????????"" ""# | | ???????????????????????????????"" % ""## | | ???????????????????????????????" """##? | | ???????????????????????????????"" ""#?? | | ???????????????????????????????" ##?? | | ???????????????????????????????"" ??? | | ???????????????????????????????? ??? | | ????????????????????????????????" ??? | | ??????????????????????????????????" ???? | | ???????????????????????????????????? ???? | | ??????????????????????????????????????? ????? | | ????????????????????????????????????????? ????? | +----------------------------------------------------+ Best States ------------- Heat Dissipation 25 Energy Generation 10 Energy Capacity 250 Matter Stores 300 Matter Capacity 300 Sight Range 18 Terrain Scan Density 10 Propulsion Shielding 33 Evasion (%) 50 Recoil Reduction 2 Item Schematics ----------------- None Robot Schematics ------------------ None Fabricated ------------ Nothing Repaired ---------- Nothing Studied --------- None Alien Tech Used ----------------- None Achievements -------------- None Challenges ------------ None Game ------ Seed SmartZipMegashotty Manual? 0 Play Time 00:28:29 Cumulative 15.9 hours Start 2026.01.24 @ 23:14:41 End 2026.01.24 @ 23:41:16 Sessions 1 Manual Loads 0 Difficulty Rogue Special Mode None Game No. 23 Rogue 23 Adventurer 0 Explorer 0 Win Type - Total 0 Types 0/0/0/0/0/0/0/0/0/0 Lore% 16 Gallery% 12 Achievement% 14 Wizard Run 0 Options --------- Layout 0 ASCII 0 Keyboard 0 Movement Mouse Keybinds 0 Fullscreen 1 Font 36/Smallcaps Map View 76x50 Zoom Use 0% Tactical HUD 1 Map Filters NONE Filters NONE Steam 1 RUN: 56464a92-45f7-4876-907d-d841779e9d5f